bitfinex-derivatives/quotes_SOLF0:USTF0_20220104
["timestamp","ask_amount","ask_price","bid_price","bid_amount"]
[1641288225025,3.0,168.57,168.56,4.18662096]
[1641288225229,3.0,168.58,168.52,12.55217941]
[1641288225526,33.70052431,168.58,168.51,5.33586788]
[1641288225729,70.34272431,168.58,168.51,5.33586788]
[1641288225926,3.0,168.56,168.51,5.33586788]
[1641288226127,3.0,168.57,168.5,27.66479]
[1641288226328,12.56275207,168.55,168.5,27.66479]
[1641288227128,12.56275207,168.55,168.51,5.33598264]
[1641288228131,12.56275207,168.55,168.5,27.66479]
[1641288228930,13.92782722,168.57,168.51,5.33589412]
[1641288229930,12.5625516,168.55,168.5,27.66479]
[1641288230333,13.92782722,168.57,168.51,5.33590278]
[1641288230938,13.92782722,168.57,168.5,27.66479]
[1641288231140,12.56250273,168.55,168.52,4.18750091]
[1641288231741,13.92782722,168.57,168.51,5.33590471]
[1641288232541,13.92782722,168.57,168.5,27.66479]
[1641288232744,12.56253241,168.56,168.52,4.1875108]
[1641288233541,16.92782722,168.57,168.5,27.66479]
[1641288233740,16.92782722,168.57,168.51,1.14838015]
[1641288234241,12.56263275,168.56,168.52,4.18754425]
[1641288234645,3.0,168.55,168.52,4.18754425]
[1641288234844,15.56263275,168.56,168.52,4.18754425]
[1641288235042,3.0,168.56,168.5,27.66479]
[1641288235241,12.56331113,168.55,168.51,5.33610717]
[1641288235442,12.56331113,168.55,168.51,11.16510717]
[1641288235742,13.92782722,168.57,168.51,5.829]
[1641288235942,12.56269106,168.56,168.52,5.33594182]
[1641288236641,12.56269106,168.56,168.52,4.18756369]
[1641288236841,15.5981109,168.57,168.53,4.18745886]
[1641288237243,15.5981109,168.57,168.49,12.55217941]
[1641288237443,3.03573431,168.57,168.5,4.16965355]
[1641288237841,6.03573431,168.57,168.5,4.16965355]
[1641288238041,4.16966004,168.56,168.5,4.16965355]
[1641288238644,3.03573431,168.57,168.5,4.16965355]
[1641288238843,4.16978586,168.55,168.49,5.31317664]
[1641288239846,3.0,168.57,168.49,5.31317664]
[1641288240044,4.16972579,168.54,168.49,5.31317664]
[1641288240545,3.02621714,168.56,168.48,5.92768228]
[1641288241646,4.16968503,168.55,168.49,4.16968503]
[1641288241845,4.16968503,168.55,168.49,5.31320182]
[1641288242448,4.1697315,168.54,168.48,5.92768228]
[1641288243247,27.66479,168.56,168.48,5.92768228]
[1641288243448,27.66479,168.56,168.52,4.18745351]
[1641288243449,40.22716659,168.56,168.52,4.18745351]
[1641288243648,12.56237659,168.56,168.52,4.18745351]
[1641288244048,15.60154175,168.55,168.51,4.18754668]
[1641288245352,13.93555013,168.57,168.49,28.81316179]
[1641288246050,13.93555013,168.57,168.49,27.66479]
[1641288246250,13.93555013,168.57,168.5,5.33609262]
[1641288246251,12.56325661,168.54,168.5,5.33609262]
[1641288247051,13.93555013,168.57,168.53,4.18754257]
[1641288247351,12.5626277,168.56,168.53,4.18754257]
[1641288247752,20.07955013,168.57,168.5,1.14838268]
[1641288247952,23.07955013,168.57,168.5,1.14838268]
[1641288248253,20.07955013,168.57,168.5,1.14838268]
[1641288248651,20.07955013,168.57,168.49,40.21696941]
[1641288248850,15.60230308,168.56,168.52,4.18769316]
[1641288249354,15.60230308,168.56,168.5,1.14836716]
[1641288250152,3.0392236,168.56,168.49,27.66479]
[1641288250453,13.9355718,168.57,168.52,4.18761345]
[1641288251253,12.56298007,168.56,168.5,1.14835886]
[1641288252056,12.56298007,168.56,168.53,4.18755]
[1641288252855,16.9355718,168.57,168.5,1.14843032]
[1641288253357,13.9355718,168.57,168.5,1.14843032]
[1641288253757,13.9355718,168.57,168.52,4.18739532]
[1641288253758,15.60143124,168.56,168.52,4.18739532]
[1641288254258,12.56218597,168.56,168.5,1.14841239]
[1641288255561,12.56218597,168.55,168.51,4.18740447]
[1641288256259,12.56218597,168.55,168.5,1.14843937]
[1641288256460,18.33018597,168.55,168.5,1.14843937]
[1641288257562,18.33018597,168.55,168.51,4.18744914]
[1641288257563,12.56234742,168.54,168.51,4.18744914]
[1641288258763,5.768,168.55,168.49,27.66479]
[1641288259063,3.03924527,168.54,168.5,5.33601367]
[1641288259664,3.03924527,168.54,168.5,1.14836016]
[1641288259864,43.26693637,168.54,168.49,1.14836412]
[1641288260464,3.03924527,168.53,168.5,4.18762472]
[1641288261166,40.2276911,168.54,168.5,4.18762472]
[1641288261367,27.66479,168.54,168.48,10.10700667]
[1641288261969,3.03324774,168.53,168.48,5.92768228]
[1641288262973,64.03079,168.54,168.48,5.92768228]
[1641288263273,64.03079,168.54,168.5,4.17933561]
[1641288263472,27.66479,168.54,168.5,4.17933561]
[1641288263976,3.0332882,168.53,168.48,5.92768228]
[1641288264774,64.29649,168.54,168.49,5.32545374]
[1641288265573,3.03332296,168.53,168.48,5.92768228]
[1641288266174,64.29649,168.54,168.49,5.32546068]
[1641288266874,3.0,168.53,168.49,5.32546068]
[1641288267078,3.03328725,168.53,168.46,12.55217941]
[1641288267878,27.66479,168.51,168.48,4.18836332]
[1641288268078,12.5629011,168.52,168.48,4.18836332]
[1641288268679,12.5629011,168.52,168.44,19.55455503]
[1641288268878,12.5629011,168.51,168.47,4.18845855]
[1641288269879,13.93955527,168.53,168.44,1.1482182]
[1641288270080,12.56520868,168.5,168.44,1.1482182]
[1641288270279,19.34620868,168.5,168.44,1.1482182]
[1641288270681,3.04025939,168.49,168.46,4.18851076]
[1641288271283,10.89929588,168.53,168.43,64.57829]
[1641288271481,12.56517158,168.51,168.47,4.18839053]
[1641288272184,12.56517158,168.51,168.43,77.13046941]
[1641288272482,12.56517158,168.5,168.46,4.1884587]
[1641288273083,13.93947365,168.53,168.43,77.13046941]
[1641288273282,13.93947365,168.53,168.44,1.14818387]
[1641288273581,13.93947365,168.53,168.43,64.57829]
[1641288273784,12.56557211,168.5,168.46,4.18852404]
[1641288274585,13.93947365,168.53,168.43,64.57829]
[1641288274786,13.93947365,168.53,168.44,1.1481872]
[1641288275387,12.56553772,168.5,168.46,4.18851257]
[1641288275987,13.93947365,168.53,168.44,1.14818946]
[1641288277193,13.93947365,168.53,168.46,4.18874764]
[1641288277394,12.56624293,168.49,168.46,4.18874764]
[1641288277994,6.655,168.49,168.44,1.14811328]
[1641288278194,43.1285,168.49,168.45,4.18888792]
[1641288278393,6.655,168.49,168.45,4.18888792]
[1641288278997,3.04017777,168.48,168.44,4.18908506]
[1641288279193,15.60743295,168.48,168.44,4.18908506]
[1641288279594,18.60743295,168.48,168.44,4.18908506]
[1641288279794,15.60743295,168.48,168.44,4.18908506]
[1641288279995,18.60743295,168.48,168.44,4.18908506]
[1641288280196,15.60743295,168.48,168.44,4.18908506]
[1641288280397,12.56784331,168.47,168.43,4.1892811]
[1641288281501,9.655,168.49,168.41,122.59475709]
[1641288281698,3.04145314,168.48,168.42,1.1480002]
[1641288282302,12.56854711,168.47,168.43,4.1895157]
[1641288283104,12.56854711,168.47,168.42,1.14799174]
[1641288284105,12.56854711,168.47,168.41,122.59475709]
[1641288284304,27.66479,168.46,168.44,4.18918638]
[1641288284504,3.0,168.45,168.41,89.0]
[1641288284705,37.12579,168.46,168.4,12.55227941]
[1641288285206,15.61262795,168.44,168.4,0.0001]
[1641288285904,12.57117481,168.44,168.4,0.0001]
[1641288286105,12.57117481,168.44,168.37,1.14779488]
[1641288286305,12.57117481,168.44,168.37,19.55439992]
[1641288287110,12.57117481,168.44,168.37,13.69997429]
[1641288287307,13.94429777,168.45,168.37,1.14779488]
[1641288287308,12.57117481,168.43,168.37,1.14779488]
[1641288288210,27.66479,168.42,168.36,12.55217941]
[1641288288410,27.66479,168.42,168.34,27.66479]
[1641288291614,3.04354469,168.41,168.35,1.14743342]
[1641288292415,3.04354469,168.41,168.36,12.55217941]
[1641288293017,3.04354469,168.41,168.35,7.00121052]
[1641288293018,3.04354469,168.41,168.35,19.55338993]
[1641288295117,3.04354469,168.41,168.35,25.55338993]
[1641288296117,3.04354469,168.41,168.36,1.14743342]
[1641288298719,15.6147195,168.42,168.36,1.14743342]
[1641288299919,3.04354469,168.42,168.36,19.55339472]
[1641288300122,3.0,168.41,168.36,19.55339472]
[1641288300319,4.929,168.41,168.36,19.55339472]
[1641288301221,4.929,168.41,168.36,13.69961283]
[1641288302623,3.04385478,168.4,168.36,1.14743342]
[1641288304525,3.04385478,168.42,168.36,1.14743342]
[1641288304727,3.04385478,168.42,168.36,13.69961283]
[1641288305329,3.04385478,168.42,168.36,19.55339472]
[1641288307633,15.61502959,168.42,168.36,1.14743342]
[1641288309933,22.03702959,168.42,168.36,1.14743342]
[1641288310636,3.04385478,168.41,168.36,1.14743342]
[1641288313843,15.61502959,168.42,168.36,1.14743342]
[1641288315444,3.04385478,168.42,168.36,19.55339669]
[1641288316744,6.04385478,168.42,168.36,1.14743342]
[1641288316947,27.66479,168.4,168.36,1.14743342]
[1641288317349,3.04385478,168.42,168.36,1.14743342]
[1641288317550,3.04385478,168.39,168.36,1.14743342]
[1641288318854,12.57117481,168.41,168.36,1.14743342]
[1641288323058,12.57117481,168.4,168.36,1.14743342]
[1641288323258,45.06896481,168.4,168.36,1.14743342]
[1641288323860,3.04385478,168.39,168.36,1.14743342]
[1641288324460,15.61502959,168.39,168.36,1.14743342]
[1641288325063,3.04385478,168.39,168.36,1.14743342]
[1641288326266,9.81585478,168.39,168.36,1.14743342]
[1641288326466,9.81585478,168.39,168.35,6.0]
[1641288326667,12.57117481,168.38,168.35,6.0]
[1641288327468,12.57117481,168.37,168.35,6.0]
[1641288330369,15.61502959,168.38,168.35,6.0]
[1641288330968,3.04385478,168.38,168.35,6.0]
[1641288331570,15.61502959,168.38,168.35,6.0]
[1641288334070,12.57117481,168.37,168.35,6.0]
[1641288336475,15.61502959,168.38,168.35,6.0]
[1641288337075,12.57117481,168.37,168.35,6.0]
[1641288341082,19.19617481,168.37,168.35,6.0]
[1641288341881,3.04385478,168.36,168.35,6.0]
[1641288343081,12.57117481,168.37,168.35,6.0]
[1641288345885,3.04385478,168.38,168.35,10.19233286]
[1641288347784,48.68637481,168.39,168.35,6.0]
[1641288348385,3.04520829,168.38,168.35,10.19236445]
[1641288349087,48.68637481,168.39,168.35,6.0]
[1641288349788,3.04438142,168.38,168.35,10.19121201]
[1641288350590,48.68637481,168.39,168.35,6.0]
[1641288351190,3.04442827,168.38,168.35,6.0]
[1641288351889,48.68637481,168.39,168.35,6.0]
[1641288353094,12.57117481,168.37,168.35,6.0]
[1641288353292,12.57117481,168.37,168.33,4.19127225]
[1641288353494,12.57117481,168.36,168.32,31.85615653]
[1641288353693,12.57117481,168.36,168.32,4.19136653]
[1641288354295,12.57117481,168.36,168.33,3.0]
[1641288354495,12.57117481,168.36,168.33,9.257]
[1641288354695,13.95717844,168.38,168.35,55.32958]
[1641288355295,12.5735322,168.38,168.35,27.66479]
[1641288356200,33.47776689,168.41,168.35,27.66479]
[1641288356397,33.47776689,168.43,168.35,31.85615653]
[1641288358303,33.47776689,168.42,168.35,27.66479]
[1641288358599,37.82976689,168.42,168.35,62.12489]
[1641288358904,37.82976689,168.42,168.35,68.12489]
[1641288359099,4.352,168.42,168.35,72.31625653]
[1641288359300,4.352,168.42,168.35,44.65146653]
[1641288359500,4.352,168.42,168.35,10.19136653]
[1641288360105,3.04445371,168.41,168.35,6.0]
[1641288360903,3.04445371,168.41,168.36,5.33976523]
[1641288361602,3.04445371,168.41,168.38,4.19136653]
[1641288362902,13.95717844,168.44,168.38,4.19136653]
[1641288364006,13.95717844,168.44,168.37,4.19136653]
[1641288364907,13.95717844,168.44,168.38,4.19136653]
[1641288366608,13.95717844,168.44,168.37,5.33976523]
[1641288367008,3.0,168.43,168.37,5.33976523]
[1641288367210,13.95717844,168.44,168.37,4.19136653]
[1641288368209,33.47776689,168.43,168.35,47.03436653]
[1641288368812,33.47776689,168.43,168.35,6.0]
[1641288368813,3.0,168.41,168.35,6.0]
[1641288369012,3.0,168.4,168.34,4.19136653]
[1641288369412,9.098,168.41,168.34,4.19136653]
[1641288369613,9.098,168.41,168.27,35.6947]
[1641288369614,39.5222206,168.39,168.29,4.19136653]
[1641288369814,36.5222206,168.39,168.3,27.66479]
[1641288370715,4.18580368,168.31,168.3,27.66479]
[1641288371617,6.3,168.34,168.3,27.66479]
[1641288371618,4.18580368,168.32,168.3,33.00227217]
[1641288372119,4.18580368,168.32,168.3,31.85615653]
[1641288372320,4.18580368,168.33,168.3,31.85615653]
[1641288372919,4.18580368,168.33,168.3,34.85615653]
[1641288373520,4.18580368,168.33,168.3,31.85615653]
[1641288374121,4.18580368,168.32,168.3,40.85615653]
[1641288374721,4.18580368,168.33,168.3,40.85615653]
[1641288374921,4.18580368,168.33,168.3,37.85615653]
[1641288375522,4.18580368,168.35,168.32,4.19136653]
[1641288376324,4.18580368,168.35,168.33,4.19136653]
[1641288377023,4.18580368,168.35,168.31,1.14612642]
[1641288377024,4.18580368,168.34,168.32,4.19136653]
[1641288379324,4.18580368,168.34,168.31,5.33749295]
[1641288380025,3.04506893,168.34,168.33,4.19136653]
[1641288380625,4.139,168.35,168.31,1.14612642]
[1641288381528,3.04509169,168.34,168.33,4.19323453]
[1641288383128,3.04509169,168.34,168.31,5.33936095]
[1641288385431,12.52615167,168.38,168.3,6.0]
[1641288386135,3.0,168.36,168.3,6.0]
[1641288386331,3.0,168.34,168.28,4.19323453]
[1641288386935,3.0,168.32,168.28,4.19323453]
[1641288387134,4.893,168.32,168.24,4.19323453]
[1641288387935,32.55779,168.32,168.24,4.19323453]
[1641288388135,32.55779,168.32,168.23,1.14310742]
[1641288388136,3.04509169,168.31,168.23,5.33634195]
[1641288388336,38.22629169,168.31,168.23,5.33634195]
[1641288389036,3.04509169,168.3,168.23,8.33634195]
[1641288389239,3.04509169,168.3,168.24,3.0]
[1641288389636,35.1812,168.31,168.23,5.33634195]
[1641288389836,35.1812,168.31,168.24,5.33634195]
[1641288390538,35.1812,168.31,168.24,4.19323453]
[1641288390539,3.03350376,168.3,168.24,4.19323453]
[1641288391239,3.03350376,168.3,168.23,5.33634195]
[1641288391640,3.03350376,168.3,168.24,6.0]
[1641288392040,3.03350376,168.3,168.2,32.6303]
[1641288392041,3.03350376,168.3,168.19,31.79403368]
[1641288392244,6.0,168.2,168.05,68.77256558]
[1641288392440,3.0,168.06,168.05,40.07842174]
[1641288392644,11.64,168.06,167.85,4.0]
[1641288392942,3.0,168.01,167.82,4.0]
[1641288393143,4.749,168.01,167.85,4.0]
[1641288393343,4.749,168.01,167.83,4.0]
[1641288393541,4.749,168.01,167.81,83.63685463]
[1641288393741,3.0,167.96,167.8,4.0]
[1641288393943,3.0,167.98,167.79,9.12]
[1641288394143,27.66479,167.91,167.77,27.66479]
[1641288394344,3.0,167.97,167.78,4.0]
[1641288394643,3.0,167.98,167.81,4.0]
[1641288394944,3.0,168.03,167.81,4.0]
[1641288395144,3.0,167.98,167.81,4.0]
[1641288395449,21.73528592,168.01,167.87,3.0]
[1641288395844,21.73528592,168.01,167.83,3.0]
[1641288396043,6.342,168.01,167.83,3.0]
[1641288396244,27.66479,167.95,167.9,3.0]
[1641288396445,27.66479,167.95,167.91,3.0]
[1641288396645,27.66479,167.95,167.85,30.66479]
[1641288396845,27.66479,167.95,167.91,3.0]
[1641288397044,10.92915149,167.94,167.9,3.0]
[1641288397445,10.92915149,167.94,167.85,27.66479]
[1641288397645,10.92915149,167.94,167.9,3.0]
[1641288397844,27.66479,167.95,167.88,3.0]
[1641288398145,27.66479,167.89,167.88,3.0]
[1641288399446,27.66479,167.89,167.87,3.0]
[1641288399645,33.61805686,167.89,167.87,3.0]
[1641288399944,44.61485706,167.89,167.87,3.0]
[1641288400144,27.66479,167.88,167.87,3.0]
[1641288400544,38.6615902,167.88,167.87,0.0001]
[1641288400745,44.61716164,167.88,167.87,0.0001]
[1641288401346,44.61716164,167.88,167.81,3.0]
[1641288401746,44.61716164,167.88,167.82,3.0]
[1641288401948,44.61716164,167.88,167.83,3.0]
[1641288402148,44.61716164,167.88,167.82,3.0]
[1641288402350,33.62036144,167.88,167.86,3.0]
[1641288402548,5.95238095,167.92,167.87,3.0]
[1641288402749,5.95238095,167.92,167.88,3.0]
[1641288402954,5.95096406,167.96,167.89,3.0]
[1641288403148,10.99444613,167.94,167.88,9.0]
[1641288403350,10.99444613,167.94,167.88,6.0]
[1641288404148,38.65923613,167.94,167.88,6.0]
[1641288404350,27.66479,167.94,167.88,6.0]
[1641288407851,27.66479,167.94,167.88,9.0]
[1641288408054,3.36347945,167.93,167.88,9.0]
[1641288408251,3.36347945,167.93,167.89,3.0]
[1641288408453,27.66479,167.94,167.88,6.0]
[1641288408853,9.31550241,167.93,167.88,6.0]
[1641288409352,3.36365287,167.92,167.88,6.0]
[1641288410254,27.66479,167.91,167.88,6.0]
[1641288411057,3.36381225,167.9,167.88,6.0]
[1641288413759,3.36381225,167.9,167.83,34.2286]
[1641288414562,3.36381225,167.9,167.85,2.27259819]
[1641288414759,3.36381225,167.9,167.86,2.27259819]
[1641288414962,3.36381225,167.9,167.85,5.9]
[1641288414963,10.9940312,167.9,167.88,2.27259819]
[1641288415160,32.03357599,167.92,167.88,2.27259819]
[1641288415360,32.03357599,167.92,167.87,2.27259819]
[1641288415562,32.03357599,167.92,167.86,2.27259819]
[1641288415961,15.52179815,167.93,167.85,2.27259819]
[1641288416161,27.66479,167.94,167.83,34.2286]
[1641288416162,3.36340962,167.91,167.86,2.27259819]
[1641288416363,3.36340962,167.91,167.87,2.27259819]
[1641288416562,3.36340962,167.93,167.86,29.93738819]
[1641288416762,3.36340962,167.93,167.86,2.27259819]
[1641288417164,3.36340962,167.93,167.85,2.27259819]
[1641288417565,3.36340962,167.93,167.84,2.27259819]
[1641288417767,3.36340962,167.93,167.83,34.2286]
[1641288417963,3.36340962,167.93,167.83,36.50119819]
[1641288418565,35.39698561,167.93,167.84,2.27259819]
[1641288419164,32.03357599,167.93,167.84,2.27259819]
[1641288419364,65.78336599,167.94,167.84,2.27259819]
[1641288419565,65.78336599,167.94,167.83,96.50119819]
[1641288419963,3.36350315,167.93,167.84,2.27259819]
[1641288420366,27.66479,167.91,167.84,2.27259819]
[1641288420867,27.66479,167.91,167.85,0.67273432]
[1641288421266,59.69836599,167.91,167.85,0.67273432]
[1641288421866,59.69836599,167.91,167.85,2.27259819]
[1641288422167,27.66479,167.91,167.86,0.67273432]
[1641288422768,12.61354396,167.89,167.84,0.67273432]
[1641288424968,12.61354396,167.89,167.85,2.27259819]
[1641288425372,12.61354396,167.88,167.84,0.67273432]
[1641288425567,12.61354396,167.88,167.86,0.67273432]
[1641288425967,12.61354396,167.88,167.84,0.67273432]
[1641288426168,12.61354396,167.87,167.84,0.67273432]
[1641288427477,12.61354396,167.86,167.84,0.67273432]
[1641288428277,12.61354396,167.88,167.84,0.67273432]
[1641288428878,12.61354396,167.9,167.84,0.67273432]
[1641288431778,3.36405727,167.89,167.84,0.67273432]
[1641288432578,15.67316556,167.9,167.84,0.67273432]
[1641288432779,15.67316556,167.9,167.84,5.13473432]
[1641288433281,15.67316556,167.9,167.85,0.67273432]
[1641288434081,3.0596216,167.9,167.85,0.67273432]
[1641288434682,12.61354396,167.87,167.85,0.67273432]
[1641288435482,35.8205994,167.91,167.85,0.67273432]
[1641288435783,32.03357599,167.89,167.85,0.67273432]
[1641288435983,32.03357599,167.89,167.85,2.94533251]
[1641288436384,32.03357599,167.89,167.86,27.66479]
[1641288436784,12.61340061,167.88,167.87,0.67273432]
[1641288436983,13.34080242,167.88,167.87,0.67273432]
[1641288437183,12.61340061,167.88,167.85,0.67273432]
[1641288437586,3.0596216,167.91,167.85,0.67273432]
[1641288437785,3.0596216,167.88,167.85,0.67273432]
[1641288438587,32.03357599,167.89,167.85,0.67273432]
[1641288438787,12.61455386,167.86,167.85,0.67273432]
[1641288439590,12.61455386,167.87,167.85,0.67273432]
[1641288440693,12.61455386,167.86,167.85,0.67273432]
[1641288442894,12.61455386,167.88,167.85,0.67273432]
[1641288444097,12.61455386,167.89,167.85,0.67273432]
[1641288446097,12.61455386,167.89,167.85,6.24373432]
[1641288446599,12.61455386,167.89,167.86,0.67273432]
[1641288449602,15.67417546,167.9,167.86,0.67273432]
[1641288450004,12.61455386,167.9,167.86,0.67273432]
[1641288450204,12.61455386,167.89,167.86,0.67273432]
[1641288450405,12.61455386,167.89,167.87,27.66479]
[1641288450805,3.0596216,167.91,167.87,27.66479]
[1641288450806,12.61455386,167.88,167.87,27.66479]
[1641288452110,12.61455386,167.88,167.85,54.0]
[1641288454313,12.61455386,167.88,167.85,58.0]
[1641288454513,12.61455386,167.89,167.87,27.66479]
[1641288454714,12.61455386,167.89,167.87,34.30079]
[1641288455314,13.34195567,167.89,167.87,6.636]
[1641288455716,13.34195567,167.89,167.85,54.0]
[1641288455915,12.61455386,167.89,167.85,54.0]
[1641288456516,12.61455386,167.89,167.87,27.66479]
[1641288456716,12.61455386,167.88,167.87,27.66479]
[1641288457719,12.61455386,167.89,167.87,27.66479]
[1641288458622,12.61455386,167.9,167.87,27.66479]
[1641288460523,12.61455386,167.9,167.87,33.66479]
[1641288461723,15.67417546,167.9,167.87,33.66479]
[1641288461925,15.67417546,167.9,167.87,6.0]
[1641288462527,15.67417546,167.9,167.87,33.66479]
[1641288462726,4.19223479,167.89,167.87,33.66479]
[1641288465430,4.19223479,167.88,167.87,33.66479]
[1641288466231,4.19223479,167.88,167.87,34.33744831]
[1641288468038,4.19223479,167.88,167.87,6.67265831]
[1641288468234,4.19223479,167.89,167.87,6.67265831]
[1641288468835,15.67417546,167.93,167.87,6.67265831]
[1641288469035,12.61455386,167.91,167.88,0.67265831]
[1641288469336,0.72740181,167.89,167.88,0.67265831]
[1641288469537,12.61455386,167.91,167.88,0.67265831]
[1641288469739,12.61455386,167.9,167.88,0.67265831]
[1641288469939,0.72740181,167.89,167.88,0.67265831]
[1641288470442,5.40040181,167.89,167.88,0.67265831]
[1641288471041,21.07457727,167.89,167.88,0.67265831]
[1641288471246,21.07457727,167.89,167.87,6.0]
[1641288471444,8.46002341,167.89,167.87,6.0]
[1641288471642,19.41884002,167.89,167.87,6.0]
[1641288471841,18.69143821,167.89,167.87,6.0]
[1641288472244,16.3662251,167.88,167.87,6.0]
[1641288473044,16.3662251,167.88,167.87,6.6727925]
[1641288473244,15.63882329,167.88,167.87,6.6727925]
[1641288474045,3.0596216,167.88,167.86,53.94518832]
[1641288474746,3.78702341,167.88,167.86,54.0]
[1641288474945,16.3662251,167.88,167.86,54.0]
[1641288475146,0.72740181,167.87,167.86,54.0]
[1641288475349,15.63882329,167.88,167.86,54.0]
[1641288475547,3.0596216,167.87,167.86,54.67277379]
[1641288476547,12.57920169,167.88,167.86,54.67277379]
[1641288477254,12.57920169,167.88,167.87,0.67277379]
[1641288477854,0.72740181,167.88,167.87,0.67277379]
[1641288478454,3.78702341,167.88,167.87,0.67277379]
[1641288478655,3.0596216,167.88,167.87,0.67277379]
[1641288479055,0.72740181,167.88,167.87,0.67277379]
[1641288479256,15.63882329,167.89,167.87,11.32677379]
[1641288479855,15.63882329,167.89,167.88,0.67277379]
[1641288480257,16.3662251,167.89,167.88,0.67277379]
[1641288480656,3.78702341,167.89,167.88,0.67277379]
[1641288480858,14.77803194,167.89,167.88,0.67277379]
[1641288490266,17.77803194,167.89,167.88,0.67277379]
[1641288490466,14.77803194,167.89,167.88,0.67277379]
[1641288490667,45.44282194,167.89,167.86,54.0]
[1641288490867,41.71542013,167.89,167.86,54.0]
[1641288491069,0.72740181,167.87,167.86,54.0]
[1641288491867,0.72740181,167.87,167.86,54.67286074]
[1641288492369,3.78702341,167.87,167.86,54.67286074]
[1641288492771,6.78702341,167.87,167.86,54.67286074]
[1641288493170,3.78702341,167.87,167.86,54.67286074]
[1641288494173,8.12702341,167.87,167.86,54.67286074]
[1641288494374,11.12702341,167.87,167.8,4.20475011]
[1641288494674,0.72740181,167.81,167.8,4.20475011]
[1641288495476,14.77803194,167.81,167.77,4.20475011]
[1641288496577,8.77803194,167.81,167.77,4.20475011]
[1641288496782,27.66479,167.82,167.77,4.20475011]
[1641288496981,4.20638603,167.78,167.77,4.20475011]
[1641288497581,4.20638603,167.78,167.74,13.74795116]
[1641288498684,4.20638603,167.78,167.77,4.20636915]
[1641288502687,4.20638603,167.78,167.77,10.20636915]
[1641288503290,12.61915809,167.81,167.77,10.20636915]
[1641288505291,15.61915809,167.81,167.77,10.20636915]
[1641288505690,12.61915809,167.81,167.77,10.20636915]
[1641288506292,12.61915809,167.8,167.77,6.0]
[1641288506691,30.66479,167.79,167.77,6.0]
[1641288507091,27.66479,167.79,167.77,6.0]
[1641288507792,40.28394809,167.79,167.77,6.0]
[1641288508592,3.0,167.78,167.77,6.0]
[1641288508792,43.28394809,167.79,167.77,6.0]
[1641288508994,40.28394809,167.79,167.77,6.0]
[1641288509194,3.0,167.78,167.77,6.0]
[1641288509392,40.28394809,167.79,167.77,6.0]
[1641288509592,12.61915809,167.78,167.77,6.0]
[1641288510392,40.28394809,167.79,167.77,6.0]
[1641288510793,43.28394809,167.79,167.77,6.0]
[1641288511196,40.28394809,167.79,167.77,6.0]
[1641288512696,27.66479,167.79,167.77,6.0]
[1641288512898,30.66479,167.79,167.77,6.0]
[1641288513800,3.0,167.78,167.75,4.20636915]
[1641288514001,3.0,167.76,167.75,4.20636915]
[1641288514301,3.0,167.76,167.75,6.915e-05]
[1641288514901,30.66479,167.76,167.75,6.915e-05]
[1641288515105,30.66479,167.76,167.72,12.61354396]
[1641288515302,30.66479,167.76,167.65,67.3669]
[1641288515303,3.0,167.74,167.67,12.61354396]
[1641288515501,3.0,167.75,167.67,12.61354396]
[1641288515701,30.66479,167.76,167.67,12.61354396]
[1641288516203,27.66479,167.76,167.67,15.61354396]
[1641288516404,12.62482387,167.75,167.67,15.61354396]
[1641288516605,5.95858781,167.74,167.67,12.61354396]
[1641288516804,12.62482387,167.74,167.66,23.40503785]
[1641288517903,12.62482387,167.74,167.66,21.44403785]
[1641288518104,40.28961387,167.76,167.71,3.0]
[1641288518303,12.62482387,167.76,167.71,9.593]
[1641288518604,12.62482387,167.76,167.71,6.593]
[1641288520605,12.62482387,167.75,167.71,12.593]
[1641288524412,12.62482387,167.76,167.71,12.593]
[1641288525112,12.62482387,167.77,167.71,12.593]
[1641288525914,40.28961387,167.79,167.71,25.20654396]
[1641288526917,27.66479,167.76,167.71,25.20654396]
[1641288530119,27.66479,167.76,167.71,12.593]
[1641288530319,27.66479,167.76,167.71,6.0]
[1641288530921,40.28961387,167.76,167.71,6.0]
[1641288533624,12.62482387,167.75,167.71,6.0]
[1641288534224,40.28961387,167.76,167.71,6.0]
[1641288534426,40.28961387,167.76,167.69,2.26760135]
[1641288534627,0.73239865,167.75,167.68,103.86993531]
[1641288535629,27.66479,167.76,167.69,18.44434623]
[1641288535828,0.73239865,167.73,167.69,18.44434623]
[1641288536231,32.49879,167.76,167.69,14.88114531]
[1641288536431,0.73239865,167.74,167.69,2.26760135]